[Event "GrandPrix_30.05"]
[Site "Chess.com"]
[Date "2020.05.30"]
[Round "7"]
[White "Lavrov_Maxim"]
[Black "rusuvlad95"]
[Result "0-1"]
[WhiteElo "2232"]
[BlackElo "2134"]
[TimeControl "600+2"]
[EndTime "11:27:21 PDT"]
[Termination "rusuvlad95 won by resignation"]

1. e4 {[%clk 0:10:01.9]} 1... e5 {[%clk 0:10:00.5]} 2. Nf3 {[%clk 0:10:02.2]}
2... Nc6 {[%clk 0:10:01.6]} 3. Bb5 {[%clk 0:10:02.3]} 3... Nf6 {[%clk 0:10:03]}
4. d3 {[%clk 0:10:02.8]} 4... Bc5 {[%clk 0:10:02.2]} 5. c3 {[%clk 0:10:03]} 5...
d6 {[%clk 0:10:02]} 6. O-O {[%clk 0:10:01.4]} 6... O-O {[%clk 0:09:59.9]} 7.
Nbd2 {[%clk 0:10:00]} 7... a6 {[%clk 0:09:17.9]} 8. Ba4 {[%clk 0:09:56.8]} 8...
b5 {[%clk 0:09:17.3]} 9. Bb3 {[%clk 0:09:53.9]} 9... Bb6 {[%clk 0:09:12.2]} 10.
h3 {[%clk 0:09:45.2]} 10... Be6 {[%clk 0:09:05]} 11. Re1 {[%clk 0:09:41.7]}
11... Bxb3 {[%clk 0:09:00.3]} 12. axb3 {[%clk 0:09:41.4]} 12... a5 {[%clk
0:09:00]} 13. Nf1 {[%clk 0:09:39.6]} 13... h6 {[%clk 0:08:57.7]} 14. Ng3 {[%clk
0:09:39.4]} 14... d5 {[%clk 0:07:54.5]} 15. Qe2 {[%clk 0:09:34.4]} 15... Re8
{[%clk 0:07:52.3]} 16. Nf5 {[%clk 0:08:37.1]} 16... Qd7 {[%clk 0:07:49.6]} 17.
N3h4 {[%clk 0:08:19.6]} 17... dxe4 {[%clk 0:06:47.9]} 18. dxe4 {[%clk 0:08:18]}
18... Ne7 {[%clk 0:06:48.2]} 19. Qf3 {[%clk 0:08:01.8]} 19... Nxf5 {[%clk
0:06:47.9]} 20. Nxf5 {[%clk 0:08:02.1]} 20... Kh8 {[%clk 0:06:37.3]} 21. Nxh6
{[%clk 0:07:55.4]} 21... Qe6 {[%clk 0:06:31.8]} 22. Ng4 {[%clk 0:06:42.6]} 22...
Nxg4 {[%clk 0:06:22.2]} 23. hxg4 {[%clk 0:06:42.3]} 23... Qxb3 {[%clk
0:06:20.4]} 24. g3 {[%clk 0:06:40.1]} 24... Rad8 {[%clk 0:06:02.4]} 25. Kg2
{[%clk 0:06:36.2]} 25... Kg8 {[%clk 0:05:58.9]} 26. Rh1 {[%clk 0:06:09.9]} 26...
Qc2 {[%clk 0:05:49.7]} 27. Qf5 {[%clk 0:05:43.4]} 27... Rd6 {[%clk 0:05:07.1]}
28. Bg5 {[%clk 0:05:03.4]} 28... f6 {[%clk 0:05:00.6]} 29. Bc1 {[%clk 0:04:15]}
29... Red8 {[%clk 0:03:42.3]} 30. g5 {[%clk 0:04:02]} 30... Bxf2 {[%clk
0:03:35.3]} 31. Qxf2 {[%clk 0:02:42.9]} 31... Rd2 {[%clk 0:03:34.3]} 32. Bxd2
{[%clk 0:02:34]} 32... Rxd2 {[%clk 0:03:35.3]} 33. Qxd2 {[%clk 0:02:11.8]} 33...
Qxd2+ {[%clk 0:03:35.2]} 34. Kf3 {[%clk 0:02:13]} 34... Qxb2 {[%clk 0:03:32.2]}
35. g6 {[%clk 0:02:05.7]} 35... Qxc3+ {[%clk 0:03:30.2]} 36. Kg4 {[%clk
0:02:05.1]} 36... Qe3 {[%clk 0:03:08.2]} 37. Rae1 {[%clk 0:02:02.3]} 37... Qg5+
{[%clk 0:03:08.1]} 38. Kf3 {[%clk 0:01:58.6]} 38... Qxg6 {[%clk 0:03:09.1]} 39.
Rd1 {[%clk 0:01:57.7]} 39... Qe8 {[%clk 0:03:01]} 40. Rd5 {[%clk 0:01:55.1]}
40... c6 {[%clk 0:02:54.1]} 41. Rd6 {[%clk 0:01:53.9]} 41... a4 {[%clk
0:02:52.7]} 42. Rc1 {[%clk 0:01:16.5]} 42... a3 {[%clk 0:02:45.4]} 43. Rdxc6
{[%clk 0:01:15.1]} 43... Qh5+ {[%clk 0:02:42.6]} 44. Ke3 {[%clk 0:01:13.6]}
44... Qg5+ {[%clk 0:02:41.7]} 45. Kf3 {[%clk 0:01:13.2]} 45... Qd2 {[%clk
0:02:39.5]} 46. Rc8+ {[%clk 0:01:07.2]} 46... Kh7 {[%clk 0:02:16.8]} 47. Rh1+
{[%clk 0:00:57]} 47... Kg6 {[%clk 0:02:18.2]} 48. Rh4 {[%clk 0:00:44.2]} 48...
Qd3+ {[%clk 0:02:14.1]} 49. Kf2 {[%clk 0:00:41.9]} 49... Qd2+ {[%clk 0:01:43.1]}
50. Kf3 {[%clk 0:00:40.1]} 50... Qd1+ {[%clk 0:01:44.1]} 51. Kf2 {[%clk
0:00:40.2]} 51... a2 {[%clk 0:01:45.1]} 0-1

[Event "GrandPrix_30.05"]
[Site "Chess.com"]
[Date "2020.05.30"]
[Round "7"]
[White "tacticthunder"]
[Black "fujiwara_hoga"]
[Result "1-0"]
[WhiteElo "2215"]
[BlackElo "2118"]
[TimeControl "600+2"]
[EndTime "11:27:21 PDT"]
[Termination "tacticthunder won by resignation"]

1. e4 {[%clk 0:09:52.2]} 1... e5 {[%clk 0:09:58.4]} 2. Nf3 {[%clk 0:09:51.2]}
2... Nc6 {[%clk 0:09:58]} 3. d4 {[%clk 0:09:41.2]} 3... exd4 {[%clk 0:09:55.4]}
4. Nxd4 {[%clk 0:09:43.1]} 4... Nf6 {[%clk 0:09:55.8]} 5. Nc3 {[%clk 0:09:42.8]}
5... Bb4 {[%clk 0:09:54.3]} 6. Nxc6 {[%clk 0:09:43.4]} 6... bxc6 {[%clk
0:09:54.5]} 7. Bd3 {[%clk 0:09:44.9]} 7... O-O {[%clk 0:09:54.8]} 8. O-O {[%clk
0:09:45.2]} 8... d5 {[%clk 0:09:54.6]} 9. exd5 {[%clk 0:09:47.1]} 9... cxd5
{[%clk 0:09:55.8]} 10. Bg5 {[%clk 0:09:47.3]} 10... c6 {[%clk 0:09:56.6]} 11.
Ne2 {[%clk 0:09:47.3]} 11... h6 {[%clk 0:09:47.6]} 12. Bh4 {[%clk 0:09:46.7]}
12... Be7 {[%clk 0:09:43.5]} 13. Nd4 {[%clk 0:09:44.2]} 13... Bd7 {[%clk
0:09:01.1]} 14. Re1 {[%clk 0:09:36.9]} 14... Re8 {[%clk 0:08:54.9]} 15. b3
{[%clk 0:09:21.1]} 15... g6 {[%clk 0:06:08.6]} 16. h3 {[%clk 0:07:53.2]} 16...
Kg7 {[%clk 0:06:05.2]} 17. Qf3 {[%clk 0:07:44.2]} 17... Ng8 {[%clk 0:06:01.7]}
18. Bg3 {[%clk 0:07:24]} 18... Bf6 {[%clk 0:05:57.2]} 19. c3 {[%clk 0:07:22.9]}
19... Qa5 {[%clk 0:05:26.5]} 20. Rec1 {[%clk 0:06:55.4]} 20... Ne7 {[%clk
0:04:59.2]} 21. a4 {[%clk 0:06:46]} 21... Qb6 {[%clk 0:04:19.4]} 22. b4 {[%clk
0:06:39.1]} 22... a5 {[%clk 0:04:15.5]} 23. bxa5 {[%clk 0:04:32.9]} 23... Qxa5
{[%clk 0:04:14.6]} 24. Re1 {[%clk 0:03:54.6]} 24... Ng8 {[%clk 0:03:48.8]} 25.
Rec1 {[%clk 0:03:48.7]} 25... Ne7 {[%clk 0:03:05.9]} 26. Bd6 {[%clk 0:03:44.5]}
26... Nc8 {[%clk 0:02:32.9]} 27. Bb4 {[%clk 0:03:38]} 27... Qa7 {[%clk
0:02:25.4]} 28. Nb3 {[%clk 0:03:32.1]} 28... Be7 {[%clk 0:02:03.7]} 29. Bxe7
{[%clk 0:03:29]} 29... Rxe7 {[%clk 0:02:05.6]} 30. a5 {[%clk 0:03:23.1]} 30...
Nd6 {[%clk 0:02:05.1]} 31. Qf4 {[%clk 0:03:23.1]} 31... Ne4 {[%clk 0:01:56.1]}
32. Bxe4 {[%clk 0:03:21.6]} 32... Rxe4 {[%clk 0:01:55.2]} 33. Qd6 {[%clk
0:03:21.9]} 33... Rc4 {[%clk 0:01:37.1]} 34. Re1 {[%clk 0:03:12.4]} 34... Bf5
{[%clk 0:00:41.6]} 35. Nd4 {[%clk 0:02:37.3]} 35... Qd7 {[%clk 0:00:39]} 36.
Qe5+ {[%clk 0:02:20.8]} 36... Kg8 {[%clk 0:00:38.3]} 37. Qf6 {[%clk 0:02:16.8]}
37... Re8 {[%clk 0:00:31]} 38. Rxe8+ {[%clk 0:02:08.1]} 38... Qxe8 {[%clk
0:00:32.9]} 39. a6 {[%clk 0:02:09.6]} 39... Bc8 {[%clk 0:00:26.4]} 40. Qd6
{[%clk 0:02:01.7]} 40... c5 {[%clk 0:00:19.1]} 41. a7 {[%clk 0:01:57.9]} 41...
Ra4 {[%clk 0:00:07.8]} 42. a8=Q {[%clk 0:01:42.5]} 1-0

[Event "GrandPrix_30.05"]
[Site "Chess.com"]
[Date "2020.05.30"]
[Round "7"]
[White "francyIM"]
[Black "swisspower96"]
[Result "0-1"]
[WhiteElo "2519"]
[BlackElo "2387"]
[TimeControl "600+2"]
[EndTime "11:27:23 PDT"]
[Termination "swisspower96 won by resignation"]

1. c4 {[%clk 0:10:01.9]} 1... e5 {[%clk 0:10:00.4]} 2. Nc3 {[%clk 0:09:55.5]}
2... Nf6 {[%clk 0:10:01.3]} 3. Nf3 {[%clk 0:09:55.1]} 3... Nc6 {[%clk
0:10:01.8]} 4. e3 {[%clk 0:09:56.3]} 4... Bb4 {[%clk 0:10:00.4]} 5. Qc2 {[%clk
0:09:57.4]} 5... Bxc3 {[%clk 0:10:00.9]} 6. Qxc3 {[%clk 0:09:58]} 6... Qe7
{[%clk 0:10:01.9]} 7. d4 {[%clk 0:09:33.3]} 7... Ne4 {[%clk 0:10:01.9]} 8. Qd3
{[%clk 0:09:33.1]} 8... exd4 {[%clk 0:10:02.7]} 9. Nxd4 {[%clk 0:09:33.8]} 9...
O-O {[%clk 0:09:45.3]} 10. Be2 {[%clk 0:09:33.2]} 10... Qb4+ {[%clk 0:09:44.6]}
11. Kf1 {[%clk 0:09:34]} 11... Qe7 {[%clk 0:09:11.3]} 12. f3 {[%clk 0:09:33.6]}
12... f5 {[%clk 0:09:12.2]} 13. Qd1 {[%clk 0:09:25.5]} 13... Nc5 {[%clk
0:08:56.4]} 14. Kf2 {[%clk 0:09:23.4]} 14... d6 {[%clk 0:08:13.9]} 15. Re1
{[%clk 0:09:19.4]} 15... a5 {[%clk 0:07:59]} 16. Kg1 {[%clk 0:09:13.6]} 16...
Rf6 {[%clk 0:07:59.1]} 17. Bf1 {[%clk 0:09:10.8]} 17... Rg6 {[%clk 0:07:48.2]}
18. b3 {[%clk 0:09:00.4]} 18... Ne5 {[%clk 0:07:44]} 19. Bb2 {[%clk 0:08:32.8]}
19... Qh4 {[%clk 0:06:44.7]} 20. Qc2 {[%clk 0:07:25.5]} 20... b6 {[%clk
0:05:07.8]} 21. Rad1 {[%clk 0:06:58.4]} 21... Bb7 {[%clk 0:05:04.5]} 22. Qf2
{[%clk 0:06:58]} 22... Qh5 {[%clk 0:04:34.9]} 23. Kh1 {[%clk 0:05:30.4]} 23...
Rf8 {[%clk 0:04:28.3]} 24. Bc1 {[%clk 0:04:25.4]} 24... Ne4 {[%clk 0:03:45.1]}
25. fxe4 {[%clk 0:03:53.9]} 25... fxe4 {[%clk 0:03:40.7]} 26. Be2 {[%clk
0:01:43.4]} 26... Rxf2 {[%clk 0:01:55.9]} 27. Bxh5 {[%clk 0:01:41.8]} 27...
Rgxg2 {[%clk 0:01:56.3]} 28. Re2 {[%clk 0:00:54.2]} 28... Rxh2+ {[%clk
0:01:56.4]} 29. Kg1 {[%clk 0:00:54]} 29... Rhg2+ {[%clk 0:01:58.1]} 30. Kh1
{[%clk 0:00:54.7]} 30... Nf3 {[%clk 0:01:30.5]} 31. Rxf2 {[%clk 0:00:45.7]}
31... Rxf2 {[%clk 0:01:31]} 32. Nxf3 {[%clk 0:00:44.6]} 32... exf3 {[%clk
0:01:31.3]} 33. Bg4 {[%clk 0:00:42.4]} 33... Kf7 {[%clk 0:00:54.1]} 34. Bd2
{[%clk 0:00:34.4]} 34... Rxd2 {[%clk 0:00:45.2]} 0-1

[Event "GrandPrix_30.05"]
[Site "Chess.com"]
[Date "2020.05.30"]
[Round "7"]
[White "Nuvas"]
[Black "Thor736"]
[Result "1-0"]
[WhiteElo "2262"]
[BlackElo "2100"]
[TimeControl "600+2"]
[EndTime "11:27:25 PDT"]
[Termination "Nuvas won by checkmate"]

1. d4 {[%clk 0:10:01.9]} 1... Nf6 {[%clk 0:10:00.4]} 2. c4 {[%clk 0:10:02.9]}
2... e6 {[%clk 0:10:01.5]} 3. Nc3 {[%clk 0:10:04.4]} 3... Bb4 {[%clk 0:10:02.4]}
4. g3 {[%clk 0:10:06]} 4... O-O {[%clk 0:09:41.4]} 5. Bg2 {[%clk 0:10:06.8]}
5... d5 {[%clk 0:09:22.3]} 6. Nf3 {[%clk 0:10:07.4]} 6... dxc4 {[%clk 0:09:19]}
7. O-O {[%clk 0:10:08.4]} 7... Nc6 {[%clk 0:09:09.7]} 8. Qa4 {[%clk 0:10:08.7]}
8... Bd7 {[%clk 0:09:00.4]} 9. Bg5 {[%clk 0:10:07.9]} 9... h6 {[%clk 0:08:38.2]}
10. Bxf6 {[%clk 0:09:54.4]} 10... Qxf6 {[%clk 0:08:37.1]} 11. Ne5 {[%clk
0:09:35.5]} 11... Nxe5 {[%clk 0:07:11.3]} 12. Qxb4 {[%clk 0:09:34.6]} 12... Nc6
{[%clk 0:07:11.6]} 13. Qxb7 {[%clk 0:09:35.7]} 13... Rab8 {[%clk 0:07:05.1]} 14.
Qxc7 {[%clk 0:09:35.4]} 14... Qd8 {[%clk 0:06:59.6]} 15. Qd6 {[%clk 0:09:07.9]}
15... Ne7 {[%clk 0:06:34.9]} 16. Rab1 {[%clk 0:08:12]} 16... Bc6 {[%clk
0:06:12.2]} 17. Qc5 {[%clk 0:08:13]} 17... Bxg2 {[%clk 0:06:01.6]} 18. Kxg2
{[%clk 0:08:14.9]} 18... Nf5 {[%clk 0:06:01.7]} 19. Rfd1 {[%clk 0:08:10.1]}
19... Qc8 {[%clk 0:05:27.1]} 20. Qxa7 {[%clk 0:07:55.1]} 20... Ra8 {[%clk
0:04:55.8]} 21. Qb6 {[%clk 0:07:26.6]} 21... Rd8 {[%clk 0:04:51.8]} 22. e4
{[%clk 0:06:54.3]} 22... Rb8 {[%clk 0:04:01.2]} 23. Qc5 {[%clk 0:06:46]} 23...
Nxd4 {[%clk 0:04:00.7]} 24. Qxc8 {[%clk 0:06:40.4]} 24... Rbxc8 {[%clk
0:04:01.7]} 25. e5 {[%clk 0:06:08.8]} 25... Nc6 {[%clk 0:03:48.4]} 26. f4 {[%clk
0:06:07.8]} 26... Nb4 {[%clk 0:03:49.7]} 27. a3 {[%clk 0:05:53.2]} 27... Nd3
{[%clk 0:03:49.5]} 28. Ne4 {[%clk 0:05:51.2]} 28... Rb8 {[%clk 0:03:43.5]} 29.
Kf1 {[%clk 0:04:46.6]} 29... Rb6 {[%clk 0:01:27.3]} 30. Rd2 {[%clk 0:04:00.3]}
30... Rdb8 {[%clk 0:01:20.6]} 31. b4 {[%clk 0:03:07.6]} 31... Ra8 {[%clk
0:01:14.5]} 32. Nd6 {[%clk 0:03:08]} 32... Rc6 {[%clk 0:00:52.7]} 33. b5 {[%clk
0:03:03]} 33... Rc5 {[%clk 0:00:53.4]} 34. b6 {[%clk 0:03:03.7]} 34... g5 {[%clk
0:00:36.7]} 35. Ne4 {[%clk 0:02:29.8]} 35... Rc6 {[%clk 0:00:27.6]} 36. b7
{[%clk 0:02:30.9]} 36... Rb8 {[%clk 0:00:27.6]} 37. Nf6+ {[%clk 0:02:32.2]}
37... Kg7 {[%clk 0:00:23.3]} 38. Nd7 {[%clk 0:02:33.3]} 38... c3 {[%clk
0:00:23.4]} 39. Nxb8 {[%clk 0:01:59.6]} 39... c2 {[%clk 0:00:24.5]} 40. Rxc2
{[%clk 0:02:01]} 40... Rxc2 {[%clk 0:00:25.1]} 41. Nd7 {[%clk 0:02:02.6]} 41...
gxf4 {[%clk 0:00:16.1]} 42. b8=Q {[%clk 0:02:00.8]} 42... f3 {[%clk 0:00:02.9]}
43. Qf8+ {[%clk 0:01:59.2]} 43... Kg6 {[%clk 0:00:04.3]} 44. Qg8+ {[%clk
0:01:59.6]} 44... Kf5 {[%clk 0:00:03.9]} 45. Qh7+ {[%clk 0:02:00.9]} 45... Kg4
{[%clk 0:00:03]} 46. Qe4+ {[%clk 0:01:55.7]} 46... Kh3 {[%clk 0:00:03.8]} 47.
Qh4# {[%clk 0:01:56.4]} 1-0

[Event "GrandPrix_30.05"]
[Site "Chess.com"]
[Date "2020.05.30"]
[Round "7"]
[White "Mikhail_Golubev"]
[Black "GM_LOADING"]
[Result "1-0"]
[WhiteElo "2154"]
[BlackElo "2308"]
[TimeControl "600+2"]
[EndTime "11:27:37 PDT"]
[Termination "Mikhail_Golubev won by resignation"]

1. e4 {[%clk 0:10:01.9]} 1... e5 {[%clk 0:10:00.5]} 2. Nf3 {[%clk 0:10:00.7]}
2... Nc6 {[%clk 0:10:01.5]} 3. Nc3 {[%clk 0:09:52]} 3... Nf6 {[%clk 0:10:01.9]}
4. g3 {[%clk 0:09:46]} 4... d5 {[%clk 0:09:57.9]} 5. exd5 {[%clk 0:09:45.9]}
5... Nxd5 {[%clk 0:09:59.8]} 6. Bg2 {[%clk 0:09:47]} 6... Nxc3 {[%clk
0:10:01.1]} 7. bxc3 {[%clk 0:09:46.9]} 7... Bc5 {[%clk 0:10:01.1]} 8. O-O {[%clk
0:09:45.4]} 8... O-O {[%clk 0:10:01.7]} 9. Re1 {[%clk 0:09:29.5]} 9... Re8
{[%clk 0:09:24.2]} 10. d4 {[%clk 0:09:15.7]} 10... exd4 {[%clk 0:07:49.7]} 11.
Rxe8+ {[%clk 0:09:12.5]} 11... Qxe8 {[%clk 0:07:51.6]} 12. cxd4 {[%clk
0:09:11.4]} 12... Bb4 {[%clk 0:05:59.9]} 13. Rb1 {[%clk 0:06:40.2]} 13... Bf5
{[%clk 0:04:19.5]} 14. a3 {[%clk 0:05:52.7]} 14... Ba5 {[%clk 0:04:08.5]} 15.
Rb5 {[%clk 0:02:41.8]} 15... Be4 {[%clk 0:03:13.9]} 16. d5 {[%clk 0:02:07.9]}
16... Rd8 {[%clk 0:01:40.3]} 17. c4 {[%clk 0:01:49.6]} 17... Bb6 {[%clk
0:01:07.4]} 18. Rb2 {[%clk 0:01:39.1]} 18... Bxf3 {[%clk 0:00:26.7]} 19. Bxf3
{[%clk 0:01:35.5]} 19... Ne5 {[%clk 0:00:21.2]} 20. Be2 {[%clk 0:01:28.4]} 20...
Qe7 {[%clk 0:00:10.1]} 21. Qc2 {[%clk 0:00:49.4]} 21... c6 {[%clk 0:00:03.9]}
22. Qe4 {[%clk 0:00:42.7]} 22... Re8 {[%clk 0:00:03.8]} 23. Bf4 {[%clk
0:00:31.3]} 23... Qf6 {[%clk 0:00:02.9]} 24. Qc2 {[%clk 0:00:24.2]} 24... cxd5
{[%clk 0:00:04]} 25. c5 {[%clk 0:00:24.6]} 25... Bc7 {[%clk 0:00:04.8]} 26. Rxb7
{[%clk 0:00:25]} 26... Rc8 {[%clk 0:00:06.1]} 27. Qb2 {[%clk 0:00:22]} 27... d4
{[%clk 0:00:07.1]} 28. Rxc7 {[%clk 0:00:21.7]} 28... Rxc7 {[%clk 0:00:06.5]} 29.
Qb8+ {[%clk 0:00:21.4]} 1-0

[Event "GrandPrix_30.05"]
[Site "Chess.com"]
[Date "2020.05.30"]
[Round "7"]
[White "Vnebo"]
[Black "SacrificeGod"]
[Result "0-1"]
[WhiteElo "2098"]
[BlackElo "2246"]
[TimeControl "600+2"]
[EndTime "11:27:44 PDT"]
[Termination "SacrificeGod won by resignation"]

1. e4 {[%clk 0:09:58.9]} 1... c5 {[%clk 0:09:59.6]} 2. Nf3 {[%clk 0:09:59]} 2...
d6 {[%clk 0:10:00.4]} 3. d4 {[%clk 0:09:59.9]} 3... cxd4 {[%clk 0:10:01.6]} 4.
Nxd4 {[%clk 0:10:01.8]} 4... Nf6 {[%clk 0:10:02.9]} 5. f3 {[%clk 0:10:03.3]}
5... e5 {[%clk 0:09:58.8]} 6. Nb3 {[%clk 0:10:03.4]} 6... Be7 {[%clk 0:09:48.4]}
7. c4 {[%clk 0:10:00.8]} 7... a5 {[%clk 0:09:48.6]} 8. Be3 {[%clk 0:10:01]} 8...
a4 {[%clk 0:09:45.3]} 9. Nc1 {[%clk 0:10:01.1]} 9... Nc6 {[%clk 0:09:38.4]} 10.
Nc3 {[%clk 0:10:01]} 10... Qa5 {[%clk 0:09:38.1]} 11. Be2 {[%clk 0:10:00.3]}
11... O-O {[%clk 0:09:14.1]} 12. O-O {[%clk 0:10:00]} 12... Bd8 {[%clk
0:06:59.3]} 13. Qxd6 {[%clk 0:07:52.2]} 13... Bb6 {[%clk 0:06:57.9]} 14. Qd2
{[%clk 0:07:51]} 14... Rd8 {[%clk 0:06:53.2]} 15. Bd3 {[%clk 0:05:53.1]} 15...
Nd4 {[%clk 0:03:01.3]} 16. Rb1 {[%clk 0:04:11.5]} 16... Be6 {[%clk 0:02:19.2]}
17. Qf2 {[%clk 0:03:44]} 17... Rac8 {[%clk 0:00:53.7]} 18. Nd5 {[%clk 0:03:36]}
18... Bxd5 {[%clk 0:00:52.6]} 19. exd5 {[%clk 0:02:54.8]} 19... Nd7 {[%clk
0:00:21.1]} 20. Ne2 {[%clk 0:02:39.9]} 20... Nc5 {[%clk 0:00:17.7]} 21. Bxd4
{[%clk 0:01:18.7]} 21... exd4 {[%clk 0:00:13.7]} 22. Bf5 {[%clk 0:01:20.2]}
22... d3 {[%clk 0:00:12.7]} 23. Nd4 {[%clk 0:01:11.8]} 23... Ne6 {[%clk
0:00:10]} 24. Bxe6 {[%clk 0:00:19.4]} 24... Rxc4 {[%clk 0:00:09.9]} 25. Qh4
{[%clk 0:00:09.5]} 25... Rxd4 {[%clk 0:00:07.7]} 26. Bxf7+ {[%clk 0:00:08.2]}
26... Kxf7 {[%clk 0:00:08.5]} 27. Qh5+ {[%clk 0:00:09.3]} 27... Kg8 {[%clk
0:00:09.1]} 28. Kh1 {[%clk 0:00:09.9]} 28... Qxd5 {[%clk 0:00:09.9]} 0-1

[Event "GrandPrix_30.05"]
[Site "Chess.com"]
[Date "2020.05.30"]
[Round "7"]
[White "Kostya_Nikologorskiy"]
[Black "am00ss00"]
[Result "1-0"]
[WhiteElo "2193"]
[BlackElo "2052"]
[TimeControl "600+2"]
[EndTime "11:27:45 PDT"]
[Termination "Kostya_Nikologorskiy won by checkmate"]

1. d4 {[%clk 0:10:01.9]} 1... d5 {[%clk 0:10:00.6]} 2. c4 {[%clk 0:10:01.9]}
2... e6 {[%clk 0:10:01.3]} 3. Nc3 {[%clk 0:10:02.4]} 3... f5 {[%clk 0:10:01.4]}
4. Bf4 {[%clk 0:09:54.9]} 4... c6 {[%clk 0:09:59.1]} 5. g3 {[%clk 0:09:51.4]}
5... Bd6 {[%clk 0:09:59.5]} 6. Nh3 {[%clk 0:09:50.8]} 6... Nf6 {[%clk
0:09:59.8]} 7. Bg2 {[%clk 0:09:51.8]} 7... O-O {[%clk 0:10:00.3]} 8. O-O {[%clk
0:09:52.6]} 8... Qe7 {[%clk 0:09:59.5]} 9. Bxd6 {[%clk 0:09:49.7]} 9... Qxd6
{[%clk 0:09:59.9]} 10. Nf4 {[%clk 0:09:50.6]} 10... Nbd7 {[%clk 0:09:53.8]} 11.
Re1 {[%clk 0:09:33.4]} 11... b6 {[%clk 0:09:51.6]} 12. Qb3 {[%clk 0:08:53.8]}
12... Bb7 {[%clk 0:09:46.1]} 13. Rad1 {[%clk 0:08:52.5]} 13... Rae8 {[%clk
0:09:15.8]} 14. f3 {[%clk 0:07:43.3]} 14... g5 {[%clk 0:09:09.4]} 15. Nh3 {[%clk
0:07:27.2]} 15... h6 {[%clk 0:08:48.1]} 16. e4 {[%clk 0:07:24]} 16... dxe4
{[%clk 0:07:25.3]} 17. fxe4 {[%clk 0:07:24.1]} 17... fxe4 {[%clk 0:06:34.3]} 18.
Nf2 {[%clk 0:07:23.9]} 18... c5 {[%clk 0:06:23.7]} 19. Nfxe4 {[%clk 0:07:01.2]}
19... Bxe4 {[%clk 0:06:17.5]} 20. Nxe4 {[%clk 0:07:02.8]} 20... Nxe4 {[%clk
0:06:13.9]} 21. Rxe4 {[%clk 0:06:52.3]} 21... cxd4 {[%clk 0:06:02]} 22. Rexd4
{[%clk 0:06:29.2]} 22... Qc5 {[%clk 0:06:01]} 23. Kh1 {[%clk 0:05:43.8]} 23...
Ne5 {[%clk 0:05:48.5]} 24. Qc2 {[%clk 0:04:28.4]} 24... Rf5 {[%clk 0:05:15.7]}
25. Qe4 {[%clk 0:03:40]} 25... Ref8 {[%clk 0:04:45.8]} 26. Bh3 {[%clk
0:03:18.3]} 26... g4 {[%clk 0:04:31.4]} 27. Bxg4 {[%clk 0:03:07.9]} 27... Nxg4
{[%clk 0:04:10.4]} 28. Qxg4+ {[%clk 0:03:09.8]} 28... Kh8 {[%clk 0:04:05.4]} 29.
Qe4 {[%clk 0:01:30.4]} 29... e5 {[%clk 0:03:44.2]} 30. Rd7 {[%clk 0:01:04.2]}
30... Qf2 {[%clk 0:02:54.4]} 31. Rd8 {[%clk 0:00:38.4]} 31... Rxd8 {[%clk
0:02:03.9]} 32. Rxd8+ {[%clk 0:00:38.7]} 32... Kg7 {[%clk 0:02:04.1]} 33. Qg4+
{[%clk 0:00:35.4]} 33... Kf7 {[%clk 0:00:47.6]} 34. Qg8+ {[%clk 0:00:33.5]}
34... Ke7 {[%clk 0:00:33.2]} 35. Qe8+ {[%clk 0:00:31]} 35... Kf6 {[%clk
0:00:31.2]} 36. Rd6+ {[%clk 0:00:32.9]} 36... Kg7 {[%clk 0:00:24.3]} 37. Rg6+
{[%clk 0:00:33.4]} 37... Kh7 {[%clk 0:00:23.2]} 38. Qg8# {[%clk 0:00:35.3]} 1-0

[Event "GrandPrix_30.05"]
[Site "Chess.com"]
[Date "2020.05.30"]
[Round "7"]
[White "ulkaf961"]
[Black "Sergey_Krivenko"]
[Result "0-1"]
[WhiteElo "1944"]
[BlackElo "2085"]
[TimeControl "600+2"]
[EndTime "11:27:48 PDT"]
[Termination "Sergey_Krivenko won by resignation"]

1. e4 {[%clk 0:10:01.5]} 1... e6 {[%clk 0:09:59.6]} 2. d4 {[%clk 0:09:56.6]}
2... d5 {[%clk 0:10:00.5]} 3. Nd2 {[%clk 0:09:57]} 3... a6 {[%clk 0:10:00.1]} 4.
Ngf3 {[%clk 0:09:55.7]} 4... Nf6 {[%clk 0:09:58.4]} 5. Bd3 {[%clk 0:09:33.5]}
5... c5 {[%clk 0:09:57.2]} 6. exd5 {[%clk 0:09:25.3]} 6... Qxd5 {[%clk
0:09:59.1]} 7. dxc5 {[%clk 0:09:05.4]} 7... Bxc5 {[%clk 0:09:50.4]} 8. Nb3
{[%clk 0:09:05.2]} 8... Ba7 {[%clk 0:09:31]} 9. Qe2 {[%clk 0:09:03.7]} 9... Nbd7
{[%clk 0:09:13.9]} 10. c4 {[%clk 0:08:55.6]} 10... Qd6 {[%clk 0:08:54.4]} 11.
Be3 {[%clk 0:08:25.1]} 11... Bxe3 {[%clk 0:07:32.8]} 12. Qxe3 {[%clk 0:08:11.3]}
12... Ng4 {[%clk 0:07:29.2]} 13. Qe2 {[%clk 0:08:11.3]} 13... Nge5 {[%clk
0:07:07.6]} 14. Nxe5 {[%clk 0:08:10.5]} 14... Nxe5 {[%clk 0:07:05.8]} 15. Rd1
{[%clk 0:08:04]} 15... Qb4+ {[%clk 0:06:27.2]} 16. Rd2 {[%clk 0:07:46.8]} 16...
Nxd3+ {[%clk 0:06:21.7]} 17. Qxd3 {[%clk 0:07:47.3]} 17... O-O {[%clk
0:06:19.9]} 18. O-O {[%clk 0:07:47.1]} 18... e5 {[%clk 0:05:58.3]} 19. Qd6
{[%clk 0:07:23]} 19... Qxd6 {[%clk 0:05:37.7]} 20. Rxd6 {[%clk 0:07:23.3]} 20...
Be6 {[%clk 0:05:33.9]} 21. Na5 {[%clk 0:07:22.8]} 21... b5 {[%clk 0:04:40.9]}
22. c5 {[%clk 0:07:21.1]} 22... Rfc8 {[%clk 0:04:40.8]} 23. c6 {[%clk 0:07:19]}
23... Kf8 {[%clk 0:04:25.8]} 24. Rfd1 {[%clk 0:07:19]} 24... Ke7 {[%clk
0:03:54.8]} 25. b3 {[%clk 0:06:55.1]} 25... Rd8 {[%clk 0:03:24]} 26. Nb7 {[%clk
0:06:47.3]} 26... Rxd6 {[%clk 0:03:00.8]} 27. Rxd6 {[%clk 0:06:45]} 27... Rc8
{[%clk 0:02:31]} 28. f3 {[%clk 0:06:29.6]} 28... a5 {[%clk 0:02:05.3]} 29. Rd2
{[%clk 0:06:00.7]} 29... a4 {[%clk 0:01:54.2]} 30. Na5 {[%clk 0:05:55.3]} 30...
axb3 {[%clk 0:01:46.4]} 31. axb3 {[%clk 0:05:55.6]} 31... b4 {[%clk 0:01:44.2]}
32. Kf2 {[%clk 0:04:37.5]} 32... Ra8 {[%clk 0:01:31.9]} 33. Nb7 {[%clk
0:04:33.2]} 33... Rc8 {[%clk 0:01:10.9]} 34. Na5 {[%clk 0:04:27.7]} 34... Ra8
{[%clk 0:01:06.8]} 35. Nc4 {[%clk 0:04:14.6]} 35... Bxc4 {[%clk 0:01:00]} 36.
bxc4 {[%clk 0:04:02.2]} 36... b3 {[%clk 0:00:54.7]} 37. Rd7+ {[%clk 0:03:59.1]}
37... Ke6 {[%clk 0:00:54.9]} 38. Rb7 {[%clk 0:03:58.4]} 38... Ra2+ {[%clk
0:00:41.8]} 39. Kg3 {[%clk 0:03:31.1]} 39... Rc2 {[%clk 0:00:39]} 40. Rb4 {[%clk
0:02:48.1]} 40... b2 {[%clk 0:00:36.4]} 41. c7 {[%clk 0:02:28.6]} 41... Kd7
{[%clk 0:00:34]} 42. Kg4 {[%clk 0:01:44.3]} 42... Rxg2+ {[%clk 0:00:24.3]} 43.
Kf5 {[%clk 0:01:43.7]} 43... Rxh2 {[%clk 0:00:19.8]} 44. Kxe5 {[%clk 0:01:41.5]}
44... Kxc7 {[%clk 0:00:20.8]} 45. Kd5 {[%clk 0:01:41.8]} 45... Rd2+ {[%clk
0:00:17.2]} 46. Kc5 {[%clk 0:01:42.4]} 46... h5 {[%clk 0:00:16.3]} 47. f4 {[%clk
0:01:38.5]} 47... h4 {[%clk 0:00:16.7]} 48. Rb3 {[%clk 0:01:39.2]} 48... h3
{[%clk 0:00:16.5]} 0-1